[Event "*** Titled Tuesday Blitz"]
[Site "Chess.com"]
[Date "2020.10.27"]
[Round "6"]
[White "kakakz"]
[Black "korbul"]
[Result "0-1"]
[WhiteElo "2387"]
[BlackElo "2598"]
[TimeControl "180+1"]
[EndTime "11:07:12 PDT"]
[Termination "korbul won by resignation"]

1. d4 {[%clk 0:02:54.3]} 1... Nf6 {[%clk 0:02:59.4]} 2. c4 {[%clk 0:02:53.9]}
2... e6 {[%clk 0:02:59.6]} 3. Nf3 {[%clk 0:02:53.9]} 3... b6 {[%clk 0:02:59.2]}
4. a3 {[%clk 0:02:52.9]} 4... g6 {[%clk 0:02:58.8]} 5. Nc3 {[%clk 0:02:52.1]}
5... Bg7 {[%clk 0:02:55.1]} 6. e4 {[%clk 0:02:51.9]} 6... d6 {[%clk 0:02:55.5]}
7. Bg5 {[%clk 0:02:50.9]} 7... h6 {[%clk 0:02:52.4]} 8. Bh4 {[%clk 0:02:47.9]}
8... g5 {[%clk 0:02:52.1]} 9. Bg3 {[%clk 0:02:47.6]} 9... Nh5 {[%clk 0:02:49.6]}
10. Be2 {[%clk 0:02:40.4]} 10... Nxg3 {[%clk 0:02:43.6]} 11. hxg3 {[%clk
0:02:40.2]} 11... Bb7 {[%clk 0:02:43.1]} 12. Rc1 {[%clk 0:02:14.8]} 12... Nd7
{[%clk 0:02:42.1]} 13. Qd3 {[%clk 0:02:06.6]} 13... a6 {[%clk 0:02:41.2]} 14.
Nd2 {[%clk 0:02:06]} 14... e5 {[%clk 0:02:30.8]} 15. d5 {[%clk 0:02:01.3]} 15...
Nc5 {[%clk 0:02:30.5]} 16. Qc2 {[%clk 0:01:53.5]} 16... a5 {[%clk 0:02:30.3]}
17. Bg4 {[%clk 0:01:52.2]} 17... O-O {[%clk 0:02:27.1]} 18. Nf1 {[%clk
0:01:50.7]} 18... a4 {[%clk 0:02:20.9]} 19. Ne3 {[%clk 0:01:31.4]} 19... Nb3
{[%clk 0:02:20.8]} 20. Rd1 {[%clk 0:00:37.6]} 20... Nd4 {[%clk 0:02:20]} 21. Qd2
{[%clk 0:00:34.1]} 21... Bc8 {[%clk 0:02:14.1]} 22. Bxc8 {[%clk 0:00:32.8]}
22... Qxc8 {[%clk 0:02:13.6]} 23. Ne2 {[%clk 0:00:33.7]} 23... b5 {[%clk
0:02:01]} 24. Nxd4 {[%clk 0:00:30.9]} 24... exd4 {[%clk 0:01:56.8]} 25. Nf5
{[%clk 0:00:31.8]} 25... bxc4 {[%clk 0:01:50.1]} 26. Nxh6+ {[%clk 0:00:27.4]}
26... Bxh6 {[%clk 0:01:48.7]} 27. Rxh6 {[%clk 0:00:27.5]} 27... f6 {[%clk
0:01:48.1]} 28. Qxd4 {[%clk 0:00:24.2]} 28... Kg7 {[%clk 0:01:36.2]} 29. Rh2
{[%clk 0:00:20.8]} 29... Qb7 {[%clk 0:01:30.8]} 30. Kd2 {[%clk 0:00:17.6]} 30...
Rh8 {[%clk 0:01:24.2]} 31. Rdh1 {[%clk 0:00:17.4]} 31... Rxh2 {[%clk 0:01:23.2]}
32. Rxh2 {[%clk 0:00:18.3]} 32... Rb8 {[%clk 0:01:23.1]} 33. Kc1 {[%clk
0:00:18]} 33... Qb3 {[%clk 0:01:20]} 34. Rh6 {[%clk 0:00:17.5]} 34... Rf8 {[%clk
0:01:08]} 35. Rh1 {[%clk 0:00:17]} 35... Kg6 {[%clk 0:00:54.1]} 36. Re1 {[%clk
0:00:16.3]} 36... Rb8 {[%clk 0:00:52.2]} 37. Re3 {[%clk 0:00:15.9]} 37... Qa2
{[%clk 0:00:48.9]} 38. Re2 {[%clk 0:00:13.9]} 38... Qa1+ {[%clk 0:00:48.3]} 39.
Kc2 {[%clk 0:00:14.1]} 39... Qf1 {[%clk 0:00:48.1]} 40. Qxc4 {[%clk 0:00:13.8]}
40... Ra8 {[%clk 0:00:37.8]} 41. Qd3 {[%clk 0:00:14]} 41... Ra5 {[%clk
0:00:36.8]} 42. e5+ {[%clk 0:00:14]} 42... f5 {[%clk 0:00:31.8]} 43. Re1 {[%clk
0:00:06.4]} 43... Qxe1 {[%clk 0:00:28.5]} 0-1

[Event "*** Titled Tuesday Blitz"]
[Site "Chess.com"]
[Date "2020.10.27"]
[Round "6"]
[White "anon569"]
[Black "dpopadic"]
[Result "0-1"]
[WhiteElo "2257"]
[BlackElo "2383"]
[TimeControl "180+1"]
[EndTime "11:07:14 PDT"]
[Termination "dpopadic won on time"]

1. e4 {[%clk 0:03:00.9]} 1... c5 {[%clk 0:02:59.2]} 2. Nf3 {[%clk 0:03:00]} 2...
Nc6 {[%clk 0:02:59.3]} 3. d4 {[%clk 0:03:00.5]} 3... cxd4 {[%clk 0:02:59.3]} 4.
Nxd4 {[%clk 0:03:01.2]} 4... Nf6 {[%clk 0:02:59.3]} 5. Nc3 {[%clk 0:03:01.6]}
5... e5 {[%clk 0:02:59.3]} 6. Ndb5 {[%clk 0:03:00.5]} 6... d6 {[%clk 0:02:58.9]}
7. Bg5 {[%clk 0:02:59.9]} 7... a6 {[%clk 0:02:58.9]} 8. Na3 {[%clk 0:02:59.5]}
8... b5 {[%clk 0:02:58.6]} 9. Bxf6 {[%clk 0:02:59.7]} 9... gxf6 {[%clk
0:02:57.8]} 10. Nd5 {[%clk 0:02:58.4]} 10... Bg7 {[%clk 0:02:57.9]} 11. c3
{[%clk 0:02:51.1]} 11... f5 {[%clk 0:02:55.5]} 12. Bd3 {[%clk 0:02:46]} 12...
Ne7 {[%clk 0:02:51.6]} 13. Nxe7 {[%clk 0:02:44.8]} 13... Qxe7 {[%clk 0:02:50.9]}
14. exf5 {[%clk 0:02:39.3]} 14... O-O {[%clk 0:02:42.4]} 15. Be4 {[%clk
0:02:22.3]} 15... Rb8 {[%clk 0:02:39.1]} 16. Nc2 {[%clk 0:02:18.4]} 16... a5
{[%clk 0:02:29.7]} 17. Qh5 {[%clk 0:02:10.2]} 17... f6 {[%clk 0:02:19.5]} 18.
Ne3 {[%clk 0:02:06.2]} 18... Kh8 {[%clk 0:02:17.6]} 19. O-O {[%clk 0:02:00.4]}
19... b4 {[%clk 0:02:16.7]} 20. c4 {[%clk 0:01:56.5]} 20... Rd8 {[%clk
0:02:09.4]} 21. Rad1 {[%clk 0:01:52.2]} 21... b3 {[%clk 0:02:07.3]} 22. a3
{[%clk 0:01:49.5]} 22... Ba6 {[%clk 0:02:06.2]} 23. Rd3 {[%clk 0:01:40.3]} 23...
a4 {[%clk 0:02:05.8]} 24. Nd5 {[%clk 0:01:32.7]} 24... Qf8 {[%clk 0:01:50.5]}
25. Rh3 {[%clk 0:01:29.4]} 25... h6 {[%clk 0:01:48.3]} 26. Bd3 {[%clk
0:01:23.5]} 26... Rbc8 {[%clk 0:01:46.7]} 27. Rh4 {[%clk 0:01:15.1]} 27... Bb7
{[%clk 0:01:41.7]} 28. Ne3 {[%clk 0:01:14]} 28... Qe8 {[%clk 0:01:31.9]} 29. Qg4
{[%clk 0:01:00.6]} 29... d5 {[%clk 0:01:24.9]} 30. cxd5 {[%clk 0:00:45.1]} 30...
Bxd5 {[%clk 0:01:24.5]} 31. Bb1 {[%clk 0:00:17.8]} 31... Bg8 {[%clk 0:01:11.9]}
32. Qh3 {[%clk 0:00:16.9]} 32... Qf8 {[%clk 0:01:10.4]} 33. Ng4 {[%clk
0:00:16.9]} 33... Kh7 {[%clk 0:01:06.9]} 34. Ne3 {[%clk 0:00:12.5]} 34... Rd2
{[%clk 0:01:01.6]} 35. Rxa4 {[%clk 0:00:10.2]} 35... Rxb2 {[%clk 0:01:01.5]} 36.
Ra7 {[%clk 0:00:10.2]} 36... Kh8 {[%clk 0:00:54.4]} 37. Be4 {[%clk 0:00:08.1]}
37... Rd2 {[%clk 0:00:47.1]} 38. Ng4 {[%clk 0:00:07.6]} 38... b2 {[%clk
0:00:44.7]} 39. Rb7 {[%clk 0:00:07]} 39... Rc1 {[%clk 0:00:42.8]} 40. Qe3 {[%clk
0:00:03.3]} 40... Rdd1 {[%clk 0:00:39.7]} 41. Bd3 {[%clk 0:00:02.3]} 41... Rxf1+
{[%clk 0:00:32.3]} 42. Bxf1 {[%clk 0:00:02.3]} 42... b1=Q {[%clk 0:00:32.3]} 0-1

[Event "*** Titled Tuesday Blitz"]
[Site "Chess.com"]
[Date "2020.10.27"]
[Round "6"]
[White "Gloomy_Wanderer"]
[Black "m_ezat"]
[Result "1-0"]
[WhiteElo "2711"]
[BlackElo "2502"]
[TimeControl "180+1"]
[EndTime "11:07:15 PDT"]
[Termination "Gloomy_Wanderer won by resignation"]

1. d4 {[%clk 0:03:00.9]} 1... Nf6 {[%clk 0:02:59]} 2. Nf3 {[%clk 0:03:00.3]}
2... g6 {[%clk 0:02:58.6]} 3. c4 {[%clk 0:03:00.9]} 3... Bg7 {[%clk 0:02:58.7]}
4. g3 {[%clk 0:03:01.1]} 4... O-O {[%clk 0:02:58.2]} 5. Bg2 {[%clk 0:03:01.3]}
5... d6 {[%clk 0:02:58.7]} 6. O-O {[%clk 0:03:01.3]} 6... Nc6 {[%clk 0:02:59]}
7. Nc3 {[%clk 0:03:01.5]} 7... Bg4 {[%clk 0:02:58.1]} 8. h3 {[%clk 0:03:00]}
8... Bxf3 {[%clk 0:02:57.1]} 9. Bxf3 {[%clk 0:03:00.9]} 9... Nd7 {[%clk
0:02:56.4]} 10. e3 {[%clk 0:03:01]} 10... e5 {[%clk 0:02:49.6]} 11. d5 {[%clk
0:02:58]} 11... Ne7 {[%clk 0:02:49.5]} 12. e4 {[%clk 0:02:58.3]} 12... f5 {[%clk
0:02:49.6]} 13. h4 {[%clk 0:02:58.4]} 13... Nf6 {[%clk 0:02:48.4]} 14. Bg5
{[%clk 0:02:50.5]} 14... h6 {[%clk 0:02:43.5]} 15. Bd2 {[%clk 0:02:39.8]} 15...
f4 {[%clk 0:02:31.8]} 16. Bg4 {[%clk 0:02:18.6]} 16... Kh7 {[%clk 0:02:04.6]}
17. Be6 {[%clk 0:02:11.6]} 17... g5 {[%clk 0:01:58.5]} 18. hxg5 {[%clk
0:02:09.6]} 18... hxg5 {[%clk 0:01:58.2]} 19. Kg2 {[%clk 0:02:09.5]} 19... Kg6
{[%clk 0:01:53.4]} 20. Rh1 {[%clk 0:02:04.4]} 20... Rh8 {[%clk 0:01:52.5]} 21.
Qe2 {[%clk 0:02:02.4]} 21... Rxh1 {[%clk 0:01:17.5]} 22. Rxh1 {[%clk 0:02:01]}
22... Neg8 {[%clk 0:01:15.1]} 23. g4 {[%clk 0:01:24.1]} 23... Nh6 {[%clk
0:01:04.6]} 24. f3 {[%clk 0:01:23.1]} 24... Nd7 {[%clk 0:00:52.7]} 25. Be1
{[%clk 0:01:11.4]} 25... Qe7 {[%clk 0:00:46.4]} 26. Bf2 {[%clk 0:01:10.6]} 26...
a6 {[%clk 0:00:43.8]} 27. a3 {[%clk 0:01:07.2]} 27... Rh8 {[%clk 0:00:42.2]} 28.
b4 {[%clk 0:01:04.9]} 28... Nf8 {[%clk 0:00:39.2]} 29. Bf5+ {[%clk 0:01:04.4]}
29... Nxf5 {[%clk 0:00:34.5]} 30. exf5+ {[%clk 0:01:05.3]} 30... Kf7 {[%clk
0:00:33.1]} 31. Qf1 {[%clk 0:00:58.5]} 31... Rxh1 {[%clk 0:00:19.5]} 32. Qxh1
{[%clk 0:00:59.4]} 32... Ke8 {[%clk 0:00:18.5]} 33. Ne4 {[%clk 0:00:53.1]} 33...
Kd8 {[%clk 0:00:18.3]} 34. c5 {[%clk 0:00:49.9]} 34... Nd7 {[%clk 0:00:17.3]}
35. cxd6 {[%clk 0:00:36.2]} 35... cxd6 {[%clk 0:00:16.8]} 36. Qc1 {[%clk
0:00:35.1]} 36... Ke8 {[%clk 0:00:14.1]} 37. Qc7 {[%clk 0:00:34.2]} 37... Bf8
{[%clk 0:00:12.8]} 38. Qxb7 {[%clk 0:00:31.8]} 38... Nf6 {[%clk 0:00:12.6]} 39.
Qc8+ {[%clk 0:00:30.4]} 39... Kf7 {[%clk 0:00:12.6]} 40. Nxg5+ {[%clk
0:00:29.5]} 40... Kg7 {[%clk 0:00:13.2]} 41. Ne6+ {[%clk 0:00:29.7]} 41... Kf7
{[%clk 0:00:12.8]} 42. g5 {[%clk 0:00:29.7]} 42... Nd7 {[%clk 0:00:10.7]} 43.
g6+ {[%clk 0:00:29]} 43... Kf6 {[%clk 0:00:08.3]} 44. Bh4+ {[%clk 0:00:28.5]}
44... Kxf5 {[%clk 0:00:08.5]} 45. Bxe7 {[%clk 0:00:28.1]} 1-0

[Event "*** Titled Tuesday Blitz"]
[Site "Chess.com"]
[Date "2020.10.27"]
[Round "6"]
[White "Vandros57"]
[Black "TomasKapitanchuk"]
[Result "1/2-1/2"]
[WhiteElo "2218"]
[BlackElo "2430"]
[TimeControl "180+1"]
[EndTime "11:07:15 PDT"]
[Termination "Game drawn by repetition"]

1. d4 {[%clk 0:03:00.9]} 1... Nf6 {[%clk 0:02:59.9]} 2. Nf3 {[%clk 0:03:00]}
2... e6 {[%clk 0:03:00.3]} 3. c4 {[%clk 0:02:59.2]} 3... Bb4+ {[%clk 0:02:59]}
4. Bd2 {[%clk 0:02:58.3]} 4... c5 {[%clk 0:02:59.5]} 5. Bxb4 {[%clk 0:02:56.2]}
5... cxb4 {[%clk 0:03:00.4]} 6. g3 {[%clk 0:02:53.7]} 6... O-O {[%clk
0:03:00.5]} 7. Bg2 {[%clk 0:02:52.9]} 7... d6 {[%clk 0:03:00.6]} 8. O-O {[%clk
0:02:51.9]} 8... Re8 {[%clk 0:03:01.1]} 9. a3 {[%clk 0:02:50]} 9... bxa3 {[%clk
0:02:58.5]} 10. Nxa3 {[%clk 0:02:47.4]} 10... Qb6 {[%clk 0:02:47.3]} 11. Nb5
{[%clk 0:02:43.6]} 11... a6 {[%clk 0:02:42.9]} 12. b3 {[%clk 0:02:39.2]} 12...
Nc6 {[%clk 0:02:36.7]} 13. Nxd6 {[%clk 0:02:37.2]} 13... Rd8 {[%clk 0:02:36.6]}
14. Nxc8 {[%clk 0:02:32.6]} 14... Raxc8 {[%clk 0:02:35.8]} 15. e3 {[%clk
0:02:30.7]} 15... e5 {[%clk 0:02:27.4]} 16. d5 {[%clk 0:02:25.9]} 16... Qc7
{[%clk 0:01:51.2]} 17. Qd2 {[%clk 0:02:20.3]} 17... e4 {[%clk 0:01:48]} 18. Nd4
{[%clk 0:02:18.7]} 18... Ne5 {[%clk 0:01:45.4]} 19. Qc2 {[%clk 0:02:14.1]} 19...
b5 {[%clk 0:01:42.3]} 20. Bxe4 {[%clk 0:02:05.1]} 20... bxc4 {[%clk 0:01:42]}
21. bxc4 {[%clk 0:02:02.1]} 21... Qxc4 {[%clk 0:01:30.1]} 22. Qxc4 {[%clk
0:01:55.9]} 22... Nxc4 {[%clk 0:01:26.2]} 23. Bf5 {[%clk 0:01:48.7]} 23... Rc7
{[%clk 0:01:09.9]} 24. Rxa6 {[%clk 0:01:41.2]} 24... g6 {[%clk 0:01:09]} 25. Bh3
{[%clk 0:01:38.2]} 25... Nxd5 {[%clk 0:01:06.9]} 26. Rc1 {[%clk 0:01:33.5]}
26... Ne5 {[%clk 0:01:02.7]} 27. Rxc7 {[%clk 0:01:31.6]} 27... Nxc7 {[%clk
0:01:03.6]} 28. Ra7 {[%clk 0:01:27.9]} 28... Nd5 {[%clk 0:01:03.6]} 29. Bf1
{[%clk 0:01:24.8]} 29... Nc3 {[%clk 0:01:01.7]} 30. h3 {[%clk 0:01:20.7]} 30...
Rc8 {[%clk 0:01:00]} 31. f4 {[%clk 0:01:19.7]} 31... Nc6 {[%clk 0:00:51.2]} 32.
Nxc6 {[%clk 0:01:18.7]} 32... Rxc6 {[%clk 0:00:52.1]} 33. Kf2 {[%clk 0:01:16.9]}
33... Ne4+ {[%clk 0:00:51.3]} 34. Kf3 {[%clk 0:01:12.4]} 34... Nd2+ {[%clk
0:00:48.9]} 35. Ke2 {[%clk 0:01:11.9]} 35... Nxf1 {[%clk 0:00:49.1]} 36. Kxf1
{[%clk 0:01:11.6]} 36... Rc2 {[%clk 0:00:47.5]} 37. e4 {[%clk 0:01:08.5]} 37...
h5 {[%clk 0:00:44.2]} 38. g4 {[%clk 0:01:06]} 38... h4 {[%clk 0:00:41.2]} 39.
Ra3 {[%clk 0:01:01.7]} 39... Kg7 {[%clk 0:00:38.4]} 40. Re3 {[%clk 0:01:00.3]}
40... Kf6 {[%clk 0:00:37.9]} 41. e5+ {[%clk 0:00:59.4]} 41... Ke6 {[%clk
0:00:38.1]} 42. Re2 {[%clk 0:00:57.6]} 42... Rc4 {[%clk 0:00:34.3]} 43. Rf2
{[%clk 0:00:54.1]} 43... Rc3 {[%clk 0:00:25.6]} 44. Kg2 {[%clk 0:00:53.4]} 44...
Rg3+ {[%clk 0:00:25.8]} 45. Kh2 {[%clk 0:00:52.8]} 45... Re3 {[%clk 0:00:26.1]}
46. f5+ {[%clk 0:00:48.9]} 46... Kxe5 {[%clk 0:00:25.3]} 47. fxg6 {[%clk
0:00:47.3]} 47... fxg6 {[%clk 0:00:26.2]} 48. Rf8 {[%clk 0:00:40.9]} 48... Re2+
{[%clk 0:00:21.9]} 49. Kg1 {[%clk 0:00:38.5]} 49... Ra2 {[%clk 0:00:21.7]} 50.
Rf3 {[%clk 0:00:36.6]} 50... Ke4 {[%clk 0:00:21.1]} 51. Rf6 {[%clk 0:00:36.1]}
51... Ke5 {[%clk 0:00:18.6]} 52. Rf3 {[%clk 0:00:35.7]} 52... Ke4 {[%clk
0:00:17.6]} 53. Rf6 {[%clk 0:00:35.5]} 53... Ke5 {[%clk 0:00:18.1]} 54. Rf3
{[%clk 0:00:31.8]} 1/2-1/2

[Event "*** Titled Tuesday Blitz"]
[Site "Chess.com"]
[Date "2020.10.27"]
[Round "6"]
[White "arminmusovic"]
[Black "RD4ever"]
[Result "0-1"]
[WhiteElo "2596"]
[BlackElo "2803"]
[TimeControl "180+1"]
[EndTime "11:07:19 PDT"]
[Termination "RD4ever won by resignation"]

1. a3 {[%clk 0:03:00.5]} 1... d5 {[%clk 0:02:58.9]} 2. Nc3 {[%clk 0:03:01.4]}
2... d4 {[%clk 0:02:57.3]} 3. Ne4 {[%clk 0:03:01.8]} 3... Nf6 {[%clk 0:02:57.1]}
4. d3 {[%clk 0:03:01.7]} 4... Bf5 {[%clk 0:02:49.3]} 5. Ng3 {[%clk 0:03:00.9]}
5... Bg6 {[%clk 0:02:48.5]} 6. e4 {[%clk 0:02:59.5]} 6... dxe3 {[%clk
0:02:44.4]} 7. fxe3 {[%clk 0:03:00.4]} 7... e5 {[%clk 0:02:42.1]} 8. Nf3 {[%clk
0:02:57]} 8... e4 {[%clk 0:02:38.7]} 9. dxe4 {[%clk 0:02:54]} 9... Qxd1+ {[%clk
0:02:36.4]} 10. Kxd1 {[%clk 0:02:54.9]} 10... Nxe4 {[%clk 0:02:34.6]} 11. Nxe4
{[%clk 0:02:54.9]} 11... Bxe4 {[%clk 0:02:35.5]} 12. Bd3 {[%clk 0:02:55.5]}
12... Bg6 {[%clk 0:02:33.6]} 13. Bd2 {[%clk 0:02:51]} 13... Nd7 {[%clk
0:02:30.6]} 14. Bc3 {[%clk 0:02:37.5]} 14... Nc5 {[%clk 0:02:29.5]} 15. Bxg6
{[%clk 0:02:31.3]} 15... hxg6 {[%clk 0:02:30.4]} 16. Ke2 {[%clk 0:02:31.6]}
16... f6 {[%clk 0:02:29.8]} 17. Bd4 {[%clk 0:02:28]} 17... Ne4 {[%clk
0:02:26.6]} 18. Nd2 {[%clk 0:02:26.1]} 18... Nd6 {[%clk 0:02:26.7]} 19. c4
{[%clk 0:02:22.1]} 19... Nf5 {[%clk 0:02:14.7]} 20. g4 {[%clk 0:02:18.4]} 20...
Ne7 {[%clk 0:01:57.6]} 21. h3 {[%clk 0:02:02.1]} 21... O-O-O {[%clk 0:01:56.3]}
22. Rad1 {[%clk 0:02:01.8]} 22... Nc6 {[%clk 0:01:56]} 23. Bc3 {[%clk 0:02:02]}
23... Re8 {[%clk 0:01:53.7]} 24. b4 {[%clk 0:01:55.3]} 24... Bd6 {[%clk
0:01:50]} 25. Kf3 {[%clk 0:01:54.8]} 25... Be5 {[%clk 0:01:48.6]} 26. Rc1 {[%clk
0:01:44.7]} 26... Rh7 {[%clk 0:01:47.5]} 27. b5 {[%clk 0:01:35.5]} 27... Bxc3
{[%clk 0:01:47]} 28. Rxc3 {[%clk 0:01:36.4]} 28... Ne5+ {[%clk 0:01:47.8]} 29.
Kg3 {[%clk 0:01:36.8]} 29... g5 {[%clk 0:01:42.6]} 30. Nf3 {[%clk 0:01:33.6]}
30... Nd7 {[%clk 0:01:32.2]} 31. c5 {[%clk 0:01:20.1]} 31... b6 {[%clk
0:01:18.6]} 32. cxb6 {[%clk 0:01:19.7]} 32... axb6 {[%clk 0:01:19.5]} 33. Rh2
{[%clk 0:00:35.2]} 33... Nc5 {[%clk 0:01:19.2]} 34. Nd2 {[%clk 0:00:35.2]} 34...
Re5 {[%clk 0:01:12.8]} 35. Rh1 {[%clk 0:00:33.4]} 35... Rh8 {[%clk 0:01:10.2]}
36. Rh2 {[%clk 0:00:33.9]} 36... Rd8 {[%clk 0:01:08.9]} 37. Kf3 {[%clk
0:00:30.9]} 37... Rxd2 {[%clk 0:00:47.3]} 38. Rxd2 {[%clk 0:00:29.7]} 38... Ne4
{[%clk 0:00:47.9]} 39. Rdd3 {[%clk 0:00:24.7]} 39... Nxc3 {[%clk 0:00:48.2]} 40.
Rxc3 {[%clk 0:00:25.6]} 40... Rxb5 {[%clk 0:00:49]} 41. a4 {[%clk 0:00:18.9]}
41... Re5 {[%clk 0:00:48.7]} 42. Rc4 {[%clk 0:00:16.2]} 42... c5 {[%clk
0:00:47.6]} 43. e4 {[%clk 0:00:15.2]} 43... Kc7 {[%clk 0:00:47.7]} 44. Kg3
{[%clk 0:00:15.7]} 44... Kc6 {[%clk 0:00:47.6]} 45. h4 {[%clk 0:00:16.3]} 45...
gxh4+ {[%clk 0:00:47.5]} 46. Kxh4 {[%clk 0:00:16.4]} 46... b5 {[%clk 0:00:48.2]}
47. axb5+ {[%clk 0:00:17.1]} 47... Kxb5 {[%clk 0:00:49.1]} 48. Rc1 {[%clk
0:00:17.2]} 48... Rxe4 {[%clk 0:00:48.5]} 49. Rb1+ {[%clk 0:00:16.8]} 49... Rb4
{[%clk 0:00:47]} 50. Re1 {[%clk 0:00:16.2]} 50... f5 {[%clk 0:00:46.3]} 51. Kh5
{[%clk 0:00:15.3]} 51... Rxg4 {[%clk 0:00:45.7]} 52. Rb1+ {[%clk 0:00:15]} 52...
Rb4 {[%clk 0:00:45.8]} 53. Rg1 {[%clk 0:00:15.2]} 53... c4 {[%clk 0:00:44.6]}
54. Rg5 {[%clk 0:00:14.1]} 54... Ka4 {[%clk 0:00:43.9]} 55. Kg6 {[%clk
0:00:13.5]} 55... c3 {[%clk 0:00:43.8]} 56. Rxf5 {[%clk 0:00:12.6]} 56... c2
{[%clk 0:00:42.7]} 0-1

[Event "*** Titled Tuesday Blitz"]
[Site "Chess.com"]
[Date "2020.10.27"]
[Round "6"]
[White "Witik"]
[Black "Mikasinski"]
[Result "1-0"]
[WhiteElo "2703"]
[BlackElo "2495"]
[TimeControl "180+1"]
[EndTime "11:07:23 PDT"]
[Termination "Witik won by resignation"]

1. d4 {[%clk 0:03:00.9]} 1... d5 {[%clk 0:02:59.3]} 2. Bf4 {[%clk 0:03:00.4]}
2... Nd7 {[%clk 0:02:57.6]} 3. Nf3 {[%clk 0:02:59.7]} 3... Ngf6 {[%clk
0:02:56.6]} 4. e3 {[%clk 0:02:59.5]} 4... g6 {[%clk 0:02:56.4]} 5. c4 {[%clk
0:02:58.9]} 5... Bg7 {[%clk 0:02:56.6]} 6. Nc3 {[%clk 0:02:58.8]} 6... c6 {[%clk
0:02:56]} 7. cxd5 {[%clk 0:02:46]} 7... Nxd5 {[%clk 0:02:49.5]} 8. Nxd5 {[%clk
0:02:45.1]} 8... cxd5 {[%clk 0:02:50.3]} 9. Rc1 {[%clk 0:02:40.8]} 9... Qb6
{[%clk 0:02:46.6]} 10. Qb3 {[%clk 0:02:31.7]} 10... Qxb3 {[%clk 0:02:45]} 11.
axb3 {[%clk 0:02:32.6]} 11... a6 {[%clk 0:02:42.5]} 12. Be2 {[%clk 0:02:26.8]}
12... e6 {[%clk 0:02:36.7]} 13. O-O {[%clk 0:02:21.8]} 13... Bf6 {[%clk
0:02:16.6]} 14. Rc7 {[%clk 0:02:17.7]} 14... Bd8 {[%clk 0:02:14.4]} 15. Rc2
{[%clk 0:02:15.3]} 15... Nb6 {[%clk 0:02:12.4]} 16. Rfc1 {[%clk 0:02:07.4]}
16... Bd7 {[%clk 0:02:12.3]} 17. Bc7 {[%clk 0:01:45.4]} 17... Rc8 {[%clk
0:02:11.8]} 18. Ne5 {[%clk 0:01:41.8]} 18... f6 {[%clk 0:02:00.3]} 19. Nd3
{[%clk 0:01:15]} 19... O-O {[%clk 0:01:45.3]} 20. Bd6 {[%clk 0:01:11.8]} 20...
Re8 {[%clk 0:01:40.3]} 21. Nc5 {[%clk 0:01:09.5]} 21... Bc6 {[%clk 0:01:40.1]}
22. Nxa6 {[%clk 0:01:03.3]} 22... Be7 {[%clk 0:01:29.3]} 23. Bg3 {[%clk
0:00:45.7]} 23... Kf7 {[%clk 0:01:02.4]} 24. Nc5 {[%clk 0:00:23.1]} 24... Nd7
{[%clk 0:01:01.9]} 25. b4 {[%clk 0:00:19.9]} 25... b6 {[%clk 0:01:01.6]} 26.
Nxe6 {[%clk 0:00:19.8]} 26... Bb7 {[%clk 0:00:47.5]} 27. Nc7 {[%clk 0:00:19]}
27... Red8 {[%clk 0:00:44.1]} 28. Bb5 {[%clk 0:00:18.7]} 28... Nb8 {[%clk
0:00:40.2]} 29. h3 {[%clk 0:00:18]} 29... Bxb4 {[%clk 0:00:40]} 30. Ne8 {[%clk
0:00:14.2]} 30... Rxc2 {[%clk 0:00:31.4]} 31. Rxc2 {[%clk 0:00:14.1]} 31... Na6
{[%clk 0:00:30]} 32. Nc7 {[%clk 0:00:12.9]} 32... Nb8 {[%clk 0:00:21.6]} 33. Kh2
{[%clk 0:00:11]} 33... Rc8 {[%clk 0:00:20.8]} 34. Re2 {[%clk 0:00:09]} 34... Bc6
{[%clk 0:00:16.9]} 35. Bxc6 {[%clk 0:00:08.7]} 35... Nxc6 {[%clk 0:00:17.8]} 36.
Nxd5 {[%clk 0:00:09.4]} 36... Bf8 {[%clk 0:00:16.6]} 37. Rc2 {[%clk 0:00:09.4]}
37... b5 {[%clk 0:00:15.5]} 38. Nb6 {[%clk 0:00:09.3]} 38... Rb8 {[%clk
0:00:10]} 39. Rxc6 {[%clk 0:00:08.5]} 39... Rb7 {[%clk 0:00:10]} 40. Nd5 {[%clk
0:00:08.1]} 1-0

[Event "*** Titled Tuesday Blitz"]
[Site "Chess.com"]
[Date "2020.10.27"]
[Round "6"]
[White "Oligan22"]
[Black "vinniethepooh"]
[Result "0-1"]
[WhiteElo "2424"]
[BlackElo "2574"]
[TimeControl "180+1"]
[EndTime "11:07:23 PDT"]
[Termination "vinniethepooh won by resignation"]

1. e4 {[%clk 0:03:00.9]} 1... c5 {[%clk 0:03:00.1]} 2. Nf3 {[%clk 0:03:00.7]}
2... d6 {[%clk 0:03:00.6]} 3. d4 {[%clk 0:03:00.6]} 3... cxd4 {[%clk 0:03:01.5]}
4. Nxd4 {[%clk 0:03:01.3]} 4... Nf6 {[%clk 0:03:01.9]} 5. Nc3 {[%clk 0:03:01.9]}
5... a6 {[%clk 0:03:02.4]} 6. Be3 {[%clk 0:03:01.4]} 6... e5 {[%clk 0:03:02.4]}
7. Nb3 {[%clk 0:02:59.6]} 7... Be7 {[%clk 0:03:02.8]} 8. h3 {[%clk 0:02:58.3]}
8... Be6 {[%clk 0:02:57.8]} 9. Qf3 {[%clk 0:02:57.9]} 9... O-O {[%clk
0:02:36.2]} 10. O-O-O {[%clk 0:02:55.8]} 10... Nbd7 {[%clk 0:02:35.6]} 11. g4
{[%clk 0:02:56]} 11... Nb6 {[%clk 0:02:35]} 12. g5 {[%clk 0:02:52.4]} 12... Nfd7
{[%clk 0:02:34.7]} 13. h4 {[%clk 0:02:49.5]} 13... Rc8 {[%clk 0:02:26.6]} 14.
Nd5 {[%clk 0:02:48.2]} 14... Bxd5 {[%clk 0:02:14.4]} 15. exd5 {[%clk 0:02:49.1]}
15... Nc4 {[%clk 0:02:14.8]} 16. Qe4 {[%clk 0:02:36.8]} 16... f5 {[%clk
0:02:05.3]} 17. gxf6 {[%clk 0:02:29.9]} 17... Nxf6 {[%clk 0:02:05.5]} 18. Qf5
{[%clk 0:02:13.9]} 18... Kh8 {[%clk 0:01:25.8]} 19. Bd3 {[%clk 0:02:13.8]} 19...
Nxe3 {[%clk 0:01:05.5]} 20. fxe3 {[%clk 0:02:13.4]} 20... Qd7 {[%clk 0:01:01.3]}
21. Na5 {[%clk 0:01:44.8]} 21... Qxf5 {[%clk 0:00:44.9]} 22. Bxf5 {[%clk
0:01:45.7]} 22... Rc5 {[%clk 0:00:45.4]} 23. Nxb7 {[%clk 0:01:43.2]} 23... Rb5
{[%clk 0:00:41.8]} 24. Bd3 {[%clk 0:01:29.8]} 24... Rxb7 {[%clk 0:00:41.6]} 25.
Bxa6 {[%clk 0:01:30.4]} 25... Ra7 {[%clk 0:00:32.5]} 26. Bc4 {[%clk 0:01:30.2]}
26... Rc8 {[%clk 0:00:28.7]} 27. Bb3 {[%clk 0:01:30.3]} 27... Ne4 {[%clk
0:00:29]} 28. Rh2 {[%clk 0:01:20.3]} 28... Bf6 {[%clk 0:00:27.7]} 29. Kb1 {[%clk
0:01:05.9]} 29... Nc5 {[%clk 0:00:22.2]} 30. Rf1 {[%clk 0:00:53.5]} 30... e4
{[%clk 0:00:21.2]} 31. c3 {[%clk 0:00:42.9]} 31... Rb8 {[%clk 0:00:17.4]} 32.
Kc2 {[%clk 0:00:41.1]} 32... Rab7 {[%clk 0:00:16.7]} 33. Rhf2 {[%clk 0:00:25.8]}
33... h6 {[%clk 0:00:11.3]} 34. Kc1 {[%clk 0:00:17.2]} 34... Nd3+ {[%clk
0:00:10.2]} 35. Kd2 {[%clk 0:00:16.7]} 35... Nxf2 {[%clk 0:00:10.8]} 36. Rxf2
{[%clk 0:00:17.6]} 36... Bxh4 {[%clk 0:00:08.8]} 37. Rf4 {[%clk 0:00:18.2]}
37... Bf6 {[%clk 0:00:07.8]} 38. Rxe4 {[%clk 0:00:18.9]} 38... Be5 {[%clk
0:00:08.3]} 39. Rg4 {[%clk 0:00:17.9]} 39... Kh7 {[%clk 0:00:08.5]} 40. Bc2+
{[%clk 0:00:17.6]} 40... Kh8 {[%clk 0:00:09.1]} 41. b4 {[%clk 0:00:18.1]} 41...
Rc7 {[%clk 0:00:08.6]} 42. c4 {[%clk 0:00:18]} 42... Rxb4 {[%clk 0:00:08.7]} 43.
Bd3 {[%clk 0:00:17.5]} 43... Rb2+ {[%clk 0:00:08.2]} 44. Kc1 {[%clk 0:00:18]}
44... Rxa2 {[%clk 0:00:08.4]} 45. Rg6 {[%clk 0:00:17.9]} 45... Ra3 {[%clk
0:00:08.3]} 46. Rxh6+ {[%clk 0:00:17.8]} 46... gxh6 {[%clk 0:00:07.9]} 0-1